fUSD/lending_fUSD_20240508
["ID","MTS","AMOUNT","RATE_DAILY","PERIOD"]
[326610436,1715139042330,-500.0,0.00020821,2]
[326610438,1715139042341,-200.0,0.000209,7]
[326610441,1715139042354,-719.144145,0.00021,2]
[326610443,1715139042365,-500.0,0.00021095,2]
[326610445,1715139042377,-500.0,0.00021095,2]
[326610447,1715139042388,-10448.0,0.00021095,2]
[326610449,1715139042399,-13915.23,0.00021095,2]
[326610452,1715139042411,-500.0,0.00021095,2]
[326610454,1715139042424,-1135.03,0.00021095,2]
[326610456,1715139042436,-500.0,0.00021095,2]
[326610459,1715139042448,-3380.52,0.00021095,2]
[326610461,1715139042460,-404.42028711,0.00021095,2]
[326610463,1715139042472,-500.0,0.00021095,2]
[326610465,1715139042484,-500.0,0.00021095,2]
[326610467,1715139042495,-500.0,0.00021095,2]
[326610469,1715139042506,-1729.55,0.00021095,2]
[326610471,1715139042517,-500.0,0.00021095,2]
[326610474,1715139042527,-151.9145512,0.00021239,2]
[326610476,1715139042539,-205.06079842,0.00021369,2]
[326610478,1715139042549,-500.0,0.00021369,2]
[326610480,1715139042560,-10448.0,0.00021369,2]
[326610482,1715139042573,-4504.13905373,0.00021369,2]
[326610485,1715139042590,-9411.09094627,0.00021369,2]
[326610487,1715139042602,-341.29481247,0.00021369,2]
[326610489,1715139042614,-1135.03,0.00021369,2]
[326610491,1715139042625,-500.0,0.00021369,2]
[326610494,1715139042637,-3380.52,0.00021369,2]
[326610496,1715139042650,-500.0,0.00021369,2]
[326610498,1715139042661,-500.0,0.00021369,2]
[326610500,1715139042672,-500.0,0.00021369,2]
[326610502,1715139042683,-1729.55,0.00021369,2]
[326610504,1715139042693,-150.64560498,0.00021369,2]
[326610506,1715139042705,-400.0,0.00021407,2]
[326610508,1715139042716,-15569.2107085,0.00021558,2]
[326610511,1715139042729,-1020.43,0.00021589,15]
[326610513,1715139042741,-500.0,0.00021643,2]
[326610515,1715139042753,-10448.0,0.00021643,2]
[326610517,1715139042765,-13915.23,0.00021643,2]
[326610519,1715139042775,-1135.03,0.00021643,2]
[326610521,1715139042787,-500.0,0.00021643,2]
[326610523,1715139042798,-3380.52,0.00021643,2]
[326610525,1715139042809,-500.0,0.00021643,2]
[326610527,1715139042819,-500.0,0.00021643,2]
[326610529,1715139042830,-251.84686099,0.00021643,2]
[326610532,1715139042841,-1729.55,0.00021643,2]
[326610534,1715139042851,-153.83058851,0.00021869,2]
[326610536,1715139042862,-150.6,0.0002189,2]
[326610538,1715139042874,-16941.4734,0.000219,2]
[326610540,1715139042884,-100000.0,0.000219,2]
[326610542,1715139042895,-6782.61968309,0.000219,2]
[326610543,1715139042907,-500.0,0.00021917,2]
[326610544,1715139042918,-10448.0,0.00021917,2]
[326610545,1715139042929,-13915.23,0.00021917,2]
[326610546,1715139042940,-1135.03,0.00021917,2]
[326610547,1715139042951,-500.0,0.00021917,2]
[326610548,1715139042962,-3380.52,0.00021917,2]
[326610549,1715139042972,-500.0,0.00021917,2]
[326610550,1715139042983,-500.0,0.00021917,2]
[326610551,1715139042994,-1729.55,0.00021917,2]
[326610552,1715139043009,-250.0,0.00021918,2]
[326610553,1715139043020,-250.0,0.00021918,2]
[326610554,1715139043031,-2000.0,0.00021918,2]
[326610555,1715139043042,-150.6,0.0002199,2]
[326610556,1715139043054,-6318.84149605,0.00022,2]
[326610557,1715139043065,-12636.75901314,0.00022,2]
[326610558,1715139043075,-546.4241888,0.00022,2]
[326610559,1715139043089,-850.0,0.00022,3]
[326610560,1715139043102,-862.16,0.00022154,2]
[326610561,1715139043114,-500.0,0.00022191,2]
[326610562,1715139043125,-10448.0,0.00022191,2]
[326610564,1715139043140,-13915.23,0.00022191,2]
[326610567,1715139043150,-1135.03,0.00022191,2]
[326610569,1715139043161,-500.0,0.00022191,2]
[326610571,1715139043172,-3380.52,0.00022191,2]
[326610572,1715139043183,-500.0,0.00022191,2]
[326610573,1715139043194,-257.24726808,0.00022191,2]
[326610574,1715139043205,-1729.55,0.00022191,2]
[326610575,1715139043215,-153.83058851,0.00022255,2]
[326610576,1715139043226,-163.99430133,0.00022272,2]
[326610577,1715139043237,-160.81383594,0.00022408,2]
[326610578,1715139043247,-500.0,0.00022465,2]
[326610579,1715139043258,-10448.0,0.00022465,2]
[326610580,1715139043269,-13915.23,0.00022465,2]
[326610581,1715139043279,-1135.03,0.00022465,2]
[326610582,1715139043290,-500.0,0.00022465,2]
[326610583,1715139043300,-3380.52,0.00022465,2]
[326610584,1715139043310,-500.0,0.00022465,2]
[326610585,1715139043320,-1729.55,0.00022465,2]
[326610586,1715139043331,-500.0,0.00022739,2]
[326610587,1715139043341,-10448.0,0.00022739,2]
[326610588,1715139043352,-13915.23,0.00022739,2]
[326610589,1715139043362,-1135.03,0.00022739,2]
[326610590,1715139043373,-500.0,0.00022739,2]
[326610591,1715139043383,-3380.52,0.00022739,2]
[326610592,1715139043394,-598.04,0.00022739,2]
[326610593,1715139043404,-1729.55,0.00022739,2]
[326610594,1715139043415,-1227.0,0.00022786,2]
[326610595,1715139043426,-1260.0,0.00022786,2]
[326610596,1715139043437,-543.0,0.00022786,2]
[326610597,1715139043447,-434.417,0.00022786,2]
[326610598,1715139043458,-589.338,0.00022786,2]
[326610599,1715139043468,-305.961,0.00022786,2]
[326610600,1715139043479,-611.0,0.00022786,2]
[326610601,1715139043490,-1451.183,0.00022786,2]
[326610602,1715139043501,-2431.0,0.00022786,2]
[326610603,1715139043513,-421.0,0.00022786,2]
[326610604,1715139043524,-444.0,0.00022786,2]
[326610605,1715139043687,-1139.0,0.00022786,2]
[326610606,1715139043706,-1645.0,0.00022786,2]
[326610607,1715139043717,-3154.0,0.00022786,2]
[326610608,1715139043727,-1058.0,0.00022786,2]
[326610609,1715139043737,-2301.0,0.00022786,2]
[326610610,1715139043747,-5745.0,0.00022786,2]
[326610613,1715139043757,-972.0,0.00022786,2]
[326610614,1715139043766,-463.0,0.00022786,2]
[326610615,1715139043776,-5907.0,0.00022786,2]
[326610616,1715139043787,-288.0,0.00022786,2]
[326610617,1715139043796,-172.3,0.00022873,2]
[326610618,1715139043806,-500.0,0.00023013,2]
[326610619,1715139043816,-10448.0,0.00023013,2]
[326610620,1715139043826,-13915.23,0.00023013,2]
[326610621,1715139043836,-1135.03,0.00023013,2]
[326610622,1715139043846,-500.0,0.00023013,2]
[326610623,1715139043856,-3380.52,0.00023013,2]
[326610624,1715139043866,-1729.55,0.00023013,2]
[326610625,1715139043875,-151.9145512,0.00023159,2]
[326610626,1715139043886,-159.8249879,0.00023251,2]
[326610627,1715139043897,-150.6,0.00023277,2]
[326610628,1715139043907,-500.0,0.00023287,2]
[326610629,1715139043917,-10448.0,0.00023287,2]
[326610630,1715139043927,-13915.23,0.00023287,2]
[326610631,1715139043937,-1135.03,0.00023287,2]
[326610632,1715139043947,-331.45711954,0.00023287,2]
[326610633,1715139043956,-3380.52,0.00023287,2]
[326610634,1715139043966,-1729.55,0.00023287,2]
[326610635,1715139043976,-2006.35426902,0.000234,2]
[326610636,1715139043986,-872.0,0.00023545,2]
[326610637,1715139043996,-200.0,0.00023545,2]
[326610638,1715139044009,-329.65099711,0.00023545,2]
[326610639,1715139044019,-500.0,0.00023561,2]
[326610640,1715139044028,-10448.0,0.00023561,2]
[326610641,1715139044038,-13915.23,0.00023561,2]
[326610642,1715139044049,-1135.03,0.00023561,2]
[326610643,1715139044059,-3380.52,0.00023561,2]
[326610644,1715139044068,-1729.55,0.00023561,2]
[326610645,1715139044078,-1000.0,0.00023735,2]
[326610646,1715139044089,-400.0,0.00023785,2]
[326610647,1715139044099,-151.9145512,0.00023807,2]
[326610648,1715139044109,-500.0,0.00023835,2]
[326610649,1715139044118,-10448.0,0.00023835,2]
[326610650,1715139044128,-13915.23,0.00023835,2]
[326610651,1715139044138,-1135.03,0.00023835,2]
[326610652,1715139044148,-3380.52,0.00023835,2]
[326610653,1715139044158,-1729.55,0.00023835,2]
[326610654,1715139044168,-500.0,0.000239,8]
[326610655,1715139044178,-353.0,0.000239,2]
[326610656,1715139044188,-1000.0,0.000239,2]
[326610657,1715139044198,-432.43230672,0.00024,2]
[326610658,1715139044208,-900.0,0.00024,3]
[326610659,1715139044218,-15569.2107085,0.00024038,2]
[326610660,1715139044228,-22933.32635339,0.00024069,2]
[326610661,1715139044238,-800.0,0.00024082,2]
[326610662,1715139044247,-151.15467405,0.00024091,2]
[326610663,1715139044256,-150.6,0.00024099,2]
[326610664,1715139044266,-500.0,0.00024109,2]
[326610665,1715139044276,-10448.0,0.00024109,2]
[326610666,1715139044285,-13915.23,0.00024109,2]
[326610667,1715139044296,-1135.03,0.00024109,2]
[326610668,1715139044306,-3380.52,0.00024109,2]
[326610669,1715139044315,-1729.55,0.00024109,2]
[326610670,1715139044325,-153.83058851,0.00024111,2]
[326610671,1715139044334,-180.0,0.0002423,2]
[326610672,1715139044344,-200.0,0.00024254,2]
[326610673,1715139044354,-1000.0,0.00024254,2]
[326610674,1715139044364,-500.0,0.00024254,2]
[326610675,1715139044374,-200.0,0.00024254,2]
[326610676,1715139044383,-154.19350589,0.0002435,2]
[326610677,1715139044393,-862.16,0.00024369,2]
[326610678,1715139044403,-512.42437806,0.00024383,2]
[326610679,1715139044413,-10448.0,0.00024383,2]
[326610680,1715139044423,-13915.23,0.00024383,2]
[326610681,1715139044433,-1135.03,0.00024383,2]
[326610682,1715139044444,-3380.52,0.00024383,2]
[326610683,1715139044454,-1729.55,0.00024383,2]
[326610684,1715139044463,-150.0,0.000245,4]
[326610685,1715139044473,-153.83058851,0.00024557,2]
[326610686,1715139044483,-151.91455123,0.00024597,2]
[326610687,1715139044492,-305.08096658,0.00024657,14]
[326610688,1715139044502,-10448.0,0.00024657,2]
[326610689,1715139044511,-13915.23,0.00024657,2]
[326610690,1715139044522,-1135.03,0.00024657,2]
[326610691,1715139044532,-3380.52,0.00024657,2]
[326610692,1715139044542,-502.83716215,0.00024657,2]
[326610693,1715139044552,-266.73623467,0.00024657,2]
[326610694,1715139044562,-1729.55,0.00024657,2]
[326610695,1715139044573,-158.3299398,0.00024928,2]
[326610696,1715139044583,-10448.0,0.00024931,2]
[326610697,1715139044593,-13915.23,0.00024931,2]
[326610698,1715139044603,-1135.03,0.00024931,2]
[326610699,1715139044613,-3380.52,0.00024931,2]
[326610700,1715139044622,-1729.55,0.00024931,2]
[326610701,1715139044632,-9141.6134401,0.0002499,2]
[326610702,1715139044642,-2219.11364841,0.00025,2]
[326610703,1715139044652,-155.0,0.00025,2]
[326610704,1715139044662,-471.76227117,0.00025,2]
[326610705,1715139044672,-155.86884904,0.00025,2]
[326610706,1715139044681,-5667.69313038,0.00025,2]
[326610707,1715139044691,-1007.3,0.00025,2]
[326610708,1715139044701,-150.0,0.00025,4]
[326610709,1715139044711,-20584.273366,0.00025,2]
[326610710,1715139044720,-153.83058851,0.00025141,2]
[326610711,1715139044730,-500.0,0.00025152,2]
[326610712,1715139044740,-500.0,0.00025161,2]
[326610713,1715139044749,-500.0,0.0002517,2]
[326610714,1715139044759,-500.0,0.00025179,2]
[326610715,1715139044768,-500.0,0.00025187,2]
[326610716,1715139044778,-150.6,0.00025195,2]
[326610717,1715139044788,-500.0,0.00025196,2]
[326610718,1715139044797,-500.0,0.00025196,2]
[326610719,1715139044807,-500.0,0.00025205,2]
[326610720,1715139044817,-10448.0,0.00025205,2]
[326610721,1715139044827,-13915.23,0.00025205,2]
[326610722,1715139044837,-1135.03,0.00025205,2]
[326610723,1715139044847,-3380.52,0.00025205,2]
[326610724,1715139044857,-1729.55,0.00025205,2]
[326610725,1715139044867,-1020.43,0.00025325,15]
[326610726,1715139044877,-536.0,0.00025379,2]
[326610727,1715139044887,-10448.22925107,0.00025479,2]
[326610728,1715139044897,-13915.23080775,0.00025479,2]
[326610729,1715139044907,-1135.1605274,0.00025479,2]
[326610730,1715139044918,-3380.74,0.00025479,2]
[326610731,1715139044927,-1729.73,0.00025479,2]
[326610732,1715139044937,-500.0,0.00025479,2]
[326610733,1715139044947,-500.0,0.00025479,2]
[326610734,1715139044956,-500.0,0.00025479,2]
[326610735,1715139044966,-500.0,0.00025479,2]
[326610736,1715139044976,-500.0,0.00025479,2]
[326610737,1715139044985,-500.0,0.00025479,2]
[326610738,1715139044995,-150.0,0.000255,4]
[326610739,1715139045008,-172.3,0.00025732,2]
[326610740,1715139045019,-22933.32635339,0.00025735,2]
[326610741,1715139045029,-1227.0,0.00025786,2]
[326610742,1715139045038,-1259.939,0.00025786,2]
[326610743,1715139045048,-543.0,0.00025786,2]
[326610744,1715139045059,-2431.0,0.00025786,2]
[326610745,1715139045068,-444.0,0.00025786,2]
[326610746,1715139045078,-1058.0,0.00025786,2]
[326610747,1715139045088,-2301.0,0.00025786,2]
[326610748,1715139045097,-5745.0,0.00025786,2]
[326610749,1715139045107,-972.0,0.00025786,2]
[326610750,1715139045116,-463.0,0.00025786,2]
[326610751,1715139045125,-5907.0,0.00025786,2]
[326610752,1715139045135,-288.0,0.00025786,2]
[326610753,1715139045145,-158.1,0.0002589,2]
[326610754,1715139045154,-159.8249879,0.00025972,2]
[326610755,1715139045164,-150.0,0.00026,4]
[326610756,1715139045174,-153.83058851,0.00026021,2]
[326610757,1715139045183,-158.72050772,0.00026139,2]
[326610758,1715139045193,-400.0,0.00026164,120]
[326610759,1715139045202,-154.06,0.0002624,120]
[326610760,1715139045212,-150.0,0.000265,5]
[326610761,1715139045221,-15569.2107085,0.00026519,2]
[326610762,1715139045231,-1007.3,0.0002655,2]
[326610763,1715139045241,-862.16,0.00026585,2]
[326610764,1715139045250,-206.0,0.0002662,19]
[326610765,1715139045260,-153.83058855,0.00026696,2]
[326610766,1715139045270,-1741.42627628,0.00027,2]
[326610767,1715139045279,-150.0,0.00027,2]
[326610768,1715139045289,-150.0,0.00027,5]
[326610769,1715139045299,-200.91565886,0.00027115,2]
[326610770,1715139045308,-300.0,0.00027397,2]
[326610771,1715139045318,-150.0,0.00027397,2]
[326610772,1715139045328,-193.39,0.00027397,10]
[326610773,1715139045339,-22933.32635339,0.00027402,2]
[326610774,1715139045348,-2264.38,0.000275,2]
[326610775,1715139045358,-2264.38,0.000275,2]
[326610776,1715139045367,-2264.38,0.000275,2]
[326610777,1715139045377,-2264.38,0.000275,2]
[326610778,1715139045386,-2264.38,0.000275,2]
[326610779,1715139045397,-2264.38,0.000275,2]
[326610780,1715139045406,-2264.38,0.000275,2]
[326610781,1715139045416,-2264.38,0.000275,2]
[326610782,1715139045425,-2264.38,0.000275,2]
[326610783,1715139045434,-2264.38,0.000275,2]
[326610784,1715139045444,-2264.38,0.000275,2]
[326610785,1715139045453,-2264.38,0.000275,2]
[326610786,1715139045463,-150.0,0.000275,5]
[326610787,1715139045473,-155.0,0.0002755,30]
[326610788,1715139045483,-2574.13073793,0.000277,2]
[326610789,1715139045492,-150.0,0.00028,5]
[326610790,1715139045502,-1007.3,0.000281,2]
[326610791,1715139045511,-150.0,0.00028115,2]
[326610792,1715139045520,-150.0,0.00028118,2]
[326610793,1715139045529,-2619.29562679,0.0002842,2]
[326610794,1715139045538,-352.68,0.00028454,2]
[326610795,1715139045548,-158.72050772,0.00028497,2]
[326610796,1715139045558,-1009.281128,0.000285,2]
[326610797,1715139045571,-150.0,0.000285,5]
[326610798,1715139045581,-400.0,0.00028542,120]
[326610799,1715139045591,-11602.54866737,0.0002871,2]
[326610800,1715139045600,-155.15805148,0.0002871,2]
[326610801,1715139045610,-158.72050773,0.00028734,2]
[326610802,1715139045619,-1000.0,0.00028767,5]
[326610803,1715139045629,-500.0,0.00028767,2]
[326610804,1715139045638,-1227.0,0.00028786,2]
[326610805,1715139045647,-348.974,0.00028786,2]
[326610806,1715139045657,-2301.0,0.00028786,2]
[326610807,1715139045666,-3124.855,0.00028786,2]
[326610808,1715139045675,-178.23,0.00028786,2]
[326610809,1715139045684,-5907.0,0.00028786,2]
[326610810,1715139045694,-288.0,0.00028786,2]
[326610811,1715139045704,-800.0,0.000288,10]
[326610812,1715139045714,-150.0,0.00028839,2]
[326610813,1715139045724,-159.47629809,0.000289,2]
[326610814,1715139045733,-170.06139776,0.000289,2]
[326610815,1715139045742,-214.0,0.000289,2]
[326610816,1715139045752,-1100.0,0.000289,10]
[326610817,1715139045761,-529.22163113,0.000289,2]
[326610818,1715139045771,-481.6289769,0.000289,2]
[326610819,1715139045781,-293.00236501,0.000289,2]
[326610820,1715139045791,-203.08660774,0.000289,2]
[326610821,1715139045800,-439.71556572,0.0002897,2]
[326610822,1715139045810,-713.26,0.00028982,2]
[326610823,1715139045819,-800.0,0.00028986,2]
[326610824,1715139045828,-165.33169135,0.00028998,2]
[326610825,1715139045838,-257.72233972,0.00028998,2]
[326610826,1715139045847,-618.27704425,0.00028998,2]
[326610827,1715139045856,-188.97420828,0.00028998,2]
[326610828,1715139045865,-15569.2107085,0.00028999,2]
[326610829,1715139045875,-222.0093951,0.00028999,2]
[326610830,1715139045886,-5859.3084292,0.00028999,2]
[326610831,1715139045895,-55070.1294726,0.00028999,2]
[326610832,1715139045910,-363.07044995,0.00028999,2]
[326610833,1715139045922,-3873.9,0.00028999,2]
[326610834,1715139045933,-2807.39999994,0.00028999,2]
[326610835,1715139046021,-351.89,0.00019068,3]
[326610836,1715139046030,-500.0,0.00019178,2]
[326610837,1715139046039,-603.55752816,0.00019452,2]
[326610838,1715139046050,-703.78,0.00020438,3]
[326610839,1715139046059,-2295.0,0.00022786,2]
[326610840,1715139046069,-1569.28729336,0.00025786,2]
[326610841,1715139046083,-725.71270664,0.00025786,2]
[326610842,1715139046093,-210.66504239,0.00028319,2]
[326610843,1715139046102,-2295.0,0.00028786,2]
[326610844,1715139046112,-341203.21805765,0.00028999,2]
[326610845,1715139046123,-3000.0,0.00028999,2]
[326610846,1715139046134,-1886.66713382,0.00028999,2]
[326610847,1715139046145,-81424.0523482,0.00028999,2]
[326610848,1715139046157,-716.50862267,0.00028999,2]
[326610849,1715139046169,-1022.73226478,0.00028999,2]
[326610850,1715139046181,-11128.49786161,0.00028999,2]
[326610851,1715139046193,-8366.10206707,0.00028999,2]
[326610852,1715139046204,-2757.22483294,0.00028999,2]
[326610875,1715139046384,-1884.50933853,0.00019078,2]
[326610877,1715139046395,-745.25502559,0.00019078,2]
[326610879,1715139046407,-28.03311085,0.00019078,2]
[326610881,1715139046417,-588.71246363,0.00019178,2]
[326610883,1715139046426,-361.04986453,0.00021916,2]
[326610885,1715139046437,-138.95013547,0.00021916,2]
[326610887,1715139046447,-159.50899119,0.00022091,2]
[326610889,1715139046456,-210.66504239,0.00028837,2]
[326610891,1715139046466,-302.33017278,0.00028999,2]
[326610894,1715139046481,-123510.24391265,0.00028999,2]
[326610896,1715139046490,-172723.75495314,0.00029,2]
[326611076,1715139048873,-255.12999486,0.00019178,2]
[326611077,1715139048885,-252.86349982,0.00019178,2]
[326611078,1715139048987,-160.38198018,0.00029,2]
[326611079,1715139049021,-171092.89050587,0.00029,2]
[326611080,1715139049033,-493.706,0.00029,2]
[326611081,1715139049045,-452.28,0.00029,2]
[326611083,1715139268817,640.93343775,6.94e-05,2]
[326611084,1715139296147,429.57465782,6.246e-05,2]
[326611097,1715140232512,-2941.72411728,0.00011029,2]
[326611098,1715140232522,-25759.77170782,0.00011128,2]
[326611099,1715140232533,-4574.59801111,0.00011128,2]
[326611104,1715140234692,-7353.0,0.00011128,2]
[326611105,1715140234704,-322.91174239,0.00011128,2]
[326611106,1715140234715,-776.61022031,0.00011128,2]
[326611107,1715140234727,-5930.05831837,0.00011128,2]
[326611108,1715140234736,-4737.07272896,0.00011129,2]
[326611109,1715140234746,-165.39781373,0.00011129,2]
[326611110,1715140234755,-2442.47919848,0.00011378,2]
[326611111,1715140234922,-2500.0,0.00011593,2]
[326611112,1715140234932,-7500.0,0.00011593,2]
[326611113,1715140234941,-1648.29215354,0.00011593,2]
[326611114,1715140234954,-386.12648597,0.00011593,2]
[326611115,1715140239436,-848.26710872,0.00011593,2]
[326611122,1715140239447,-4974.12605177,0.00011593,2]
[326611127,1715140239459,-1331.27394823,0.00011692,2]
[326611133,1715140239471,-260.34460277,0.00011692,2]
[326611137,1715140239482,-11170.21948246,0.00011692,2]
[326611139,1715140239493,-40918.20072867,0.00011692,2]
[326611141,1715140239503,-227482.59102034,0.00011693,2]
[326611143,1715140239515,-222.41,0.00011693,2]
[326611145,1715140239525,-782.62056695,0.00011694,2]
[326611147,1715140239534,-704.13315772,0.00011798,2]
[326611149,1715140239544,-158.77689389,0.00011798,2]
[326611151,1715140239554,-156.8291587,0.00011798,2]
[326611153,1715140239563,-320.31484651,0.00011798,2]
[326611155,1715140239574,-999.99,0.00011798,2]
[326611158,1715140239584,-499.99,0.00011798,2]
[326611159,1715140239593,-138301.30936847,0.000118,2]
[326611162,1715140239603,-333.55,0.0001215,2]
[326611163,1715140239612,-200.0,0.000124,4]
[326611165,1715140239622,-500.0,0.000125,4]
[326611167,1715140239632,-800.0,0.000126,4]
[326611170,1715140239641,-991.32,0.000126,2]
[326611172,1715140239651,-1100.0,0.000127,4]
[326611174,1715140239660,-1300.0,0.000128,4]
[326611176,1715140239670,-159.47629809,0.000129,2]
[326611178,1715140239680,-16941.4734,0.000129,2]
[326611180,1715140239690,-170.06139776,0.000129,2]
[326611182,1715140239699,-150.99,0.000129,2]
[326611183,1715140239708,-200.0,0.000129,4]
[326611186,1715140239718,-34454.51764784,0.000129,2]
[326611188,1715140239728,-529.22163113,0.000129,2]
[326611189,1715140239737,-150.59,0.0001299,2]
[326611191,1715140239747,-150.59,0.0001299,2]
[326611193,1715140239758,-150.59,0.0001299,2]
[326611196,1715140239767,-150.59,0.0001299,2]
[326611198,1715140239777,-150.59,0.0001299,2]
[326611200,1715140239787,-150.59,0.0001299,2]
[326611202,1715140239796,-150.59,0.0001299,2]
[326611203,1715140239806,-150.59,0.0001299,2]
[326611205,1715140239815,-150.59,0.0001299,2]
[326611206,1715140239825,-150.59,0.0001299,2]
[326611208,1715140239834,-150.59,0.0001299,2]
[326611210,1715140239844,-150.59,0.0001299,2]
[326611212,1715140239853,-150.59,0.0001299,2]
[326611214,1715140239862,-150.59,0.0001299,2]
[326611216,1715140239872,-150.59,0.0001299,2]
[326611218,1715140239881,-150.59,0.0001299,2]
[326611220,1715140239891,-150.59,0.0001299,2]
[326611222,1715140239900,-150.59,0.0001299,2]
[326611224,1715140239910,-150.59,0.0001299,2]
[326611226,1715140239919,-150.59,0.0001299,2]
[326611228,1715140239929,-150.59,0.0001299,2]
[326611230,1715140239939,-150.59,0.0001299,2]
[326611232,1715140239949,-150.59,0.0001299,2]
[326611234,1715140239958,-150.59,0.0001299,2]
[326611236,1715140239968,-150.59,0.0001299,2]
[326611238,1715140239979,-150.59,0.0001299,2]
[326611240,1715140239989,-150.59,0.0001299,2]
[326611242,1715140239998,-150.59,0.0001299,2]
[326611244,1715140240010,-150.59,0.0001299,2]
[326611246,1715140240020,-150.59,0.0001299,2]
[326611248,1715140240030,-150.59,0.0001299,2]
[326611250,1715140240040,-150.59,0.0001299,2]
[326611252,1715140240049,-150.59,0.0001299,2]
[326611254,1715140240059,-150.59,0.0001299,2]
[326611256,1715140240070,-150.59,0.0001299,2]
[326611258,1715140240081,-150.59,0.0001299,2]
[326611260,1715140240092,-150.59,0.0001299,2]
[326611262,1715140240102,-150.59,0.0001299,2]
[326611264,1715140240112,-150.59,0.0001299,2]
[326611266,1715140240122,-150.59,0.0001299,2]
[326611267,1715140240132,-150.59,0.0001299,2]
[326611268,1715140240142,-150.59,0.0001299,2]
[326611269,1715140240152,-150.59,0.0001299,2]
[326611270,1715140240162,-150.59,0.0001299,2]
[326611271,1715140240173,-150.59,0.0001299,2]
[326611272,1715140240183,-150.59,0.0001299,2]
[326611273,1715140240192,-150.59,0.0001299,2]
[326611274,1715140240201,-150.59,0.0001299,2]
[326611275,1715140240211,-150.59,0.0001299,2]
[326611276,1715140240220,-150.59,0.0001299,2]
[326611277,1715140240230,-150.59,0.0001299,2]
[326611278,1715140240239,-2685264.63640976,0.00013,2]
[326611279,1715140240251,-1027704.55799199,0.00013,2]
[326611280,1715140240263,-385.44358595,0.00013,2]
[326611484,1715140242292,-319.58,0.00013,2]
[326611487,1715140242304,-338.78797649,0.00013,2]
[326611490,1715140242315,-795.74480112,0.00013,2]
[326611494,1715140242327,-2560.0,0.00013,2]
[326611497,1715140242338,-5677.204223,0.00013,2]
[326611600,1715140245128,-1026.59,0.00012432,2]
[326611603,1715140245137,-18184.59656797,0.00013,2]
[326611606,1715140245149,-617.53529456,0.00013,2]
[326611611,1715140245160,-695.7569121,0.00013,2]
[326611615,1715140247096,-2000.0,0.00013,2]
[326611617,1715140247108,-1221.72,0.00013,2]
[326611619,1715140247119,-456.80005735,0.00013,2]
[326611625,1715140339204,5310.15,9e-05,2]
[326611636,1715141147722,2104.25,0.00025,120]
[326611642,1715141432471,-155.0,0.0001104,2]
[326611644,1715141432480,-782.62056695,0.00011041,2]
[326611647,1715141432490,-200.0,0.00011042,2]
[326611650,1715141432499,-155.0,0.00011092,2]
[326611653,1715141432508,-165.39781373,0.00011093,2]
[326611656,1715141432517,-155.0,0.00011093,2]
[326611659,1715141432527,-685.3229922,0.00011093,2]
[326611661,1715141432537,-500.0,0.00011096,2]
[326611665,1715141432546,-1037.99159752,0.00011104,2]
[326611668,1715141432558,-462.00840248,0.00011104,2]
[326611670,1715141432567,-159.62,0.00011143,2]
[326611672,1715141432576,-157.91159776,0.00011177,2]
[326611674,1715141432588,-63513.819224,0.00011177,2]
[326611676,1715141432599,-1346.78709982,0.00011177,2]
[326611722,1715141441275,-155.0,0.0001104,2]
[326611723,1715141441288,-345.49766,0.00011177,2]